lending/lending_fUSD_20251015
["ID","MTS","AMOUNT","RATE_DAILY","PERIOD"]
[391360378,1760566242114,-475.49624517,0.000265,3]
[391360379,1760566242125,-1007.38,0.000265,30]
[391360380,1760566242134,-17076.865887,0.00026511,3]
[391360381,1760566242144,-1000.0,0.00026521,2]
[391360382,1760566242155,-1000.0,0.00026521,2]
[391360383,1760566242164,-1000.0,0.00026521,2]
[391360384,1760566242175,-25393.9979739,0.0002656,3]
[391360385,1760566242186,-17076.865887,0.00026568,3]
[391360386,1760566242197,-150.8,0.00026568,2]
[391360387,1760566242208,-151.0,0.0002657,7]
[391360388,1760566242218,-191.151548,0.0002657,7]
[391360389,1760566242228,-212.888187,0.0002657,7]
[391360390,1760566242238,-151.0,0.0002657,7]
[391360391,1760566242249,-151.0,0.0002657,7]
[391360392,1760566242259,-151.0,0.0002657,7]
[391360393,1760566242268,-151.0,0.0002657,7]
[391360394,1760566242279,-152.240804,0.0002657,7]
[391360396,1760566242289,-151.0,0.0002657,7]
[391360397,1760566242299,-212.888187,0.0002657,7]
[391360399,1760566242308,-17076.865887,0.0002657,3]
[391360401,1760566242318,-600.0,0.00026575,2]
[391360402,1760566242328,-25393.9979739,0.00026577,3]
[391360403,1760566242337,-421.57860754,0.00026578,2]
[391360404,1760566242346,-25393.9979739,0.0002658,3]
[391360405,1760566242356,-17076.865887,0.0002658,3]
[391360406,1760566242365,-151.0,0.00026587,7]
[391360407,1760566242374,-151.0,0.00026587,7]
[391360408,1760566242383,-151.0,0.00026587,7]
[391360409,1760566242392,-421.278456,0.00026587,7]
[391360410,1760566242401,-151.0,0.00026587,7]
[391360411,1760566242411,-421.278456,0.00026587,7]
[391360412,1760566242420,-421.278456,0.00026587,7]
[391360413,1760566242429,-421.278456,0.00026587,7]
[391360414,1760566242439,-151.0,0.00026587,7]
[391360415,1760566242448,-256.343041,0.00026587,7]
[391360417,1760566242457,-151.0,0.00026587,7]
[391360418,1760566242466,-151.0,0.00026587,7]
[391360420,1760566242475,-151.0,0.00026587,7]
[391360421,1760566242484,-151.0,0.00026587,7]
[391360423,1760566242494,-151.0,0.00026587,7]
[391360424,1760566242503,-151.0,0.00026587,7]
[391360425,1760566242512,-217.851951,0.00026587,7]
[391360426,1760566242522,-151.0,0.00026587,7]
[391360427,1760566242531,-155.574498,0.00026587,7]
[391360428,1760566242541,-155.574498,0.00026587,7]
[391360429,1760566242550,-155.574498,0.00026587,7]
[391360430,1760566242559,-155.574498,0.00026587,7]
[391360431,1760566242568,-207.120344,0.00026587,7]
[391360432,1760566242578,-151.0,0.00026587,7]
[391360433,1760566242587,-151.0,0.00026587,7]
[391360434,1760566242596,-151.0,0.00026587,7]
[391360435,1760566242606,-151.0,0.00026587,7]
[391360436,1760566242616,-187.338645,0.00026587,7]
[391360437,1760566242625,-151.0,0.00026587,7]
[391360438,1760566242634,-151.0,0.00026587,7]
[391360439,1760566242643,-151.0,0.00026587,7]
[391360440,1760566242653,-151.0,0.00026587,7]
[391360441,1760566242662,-151.0,0.00026587,7]
[391360442,1760566242672,-151.0,0.00026587,7]
[391360443,1760566242681,-151.0,0.00026587,7]
[391360444,1760566242691,-151.0,0.00026587,7]
[391360445,1760566242702,-151.0,0.00026587,7]
[391360446,1760566242711,-261.813996,0.00026587,7]
[391360447,1760566242721,-151.0,0.00026587,7]
[391360448,1760566242731,-261.813996,0.00026587,7]
[391360449,1760566242740,-166.751629,0.00026587,7]
[391360450,1760566242750,-151.0,0.00026587,7]
[391360451,1760566242759,-261.813996,0.00026587,7]
[391360452,1760566242769,-151.0,0.00026587,7]
[391360453,1760566242778,-261.813996,0.00026587,7]
[391360454,1760566242788,-151.0,0.00026587,7]
[391360455,1760566242798,-151.0,0.00026587,7]
[391360456,1760566242808,-151.0,0.00026587,7]
[391360457,1760566242817,-151.0,0.00026587,7]
[391360458,1760566242826,-151.140077,0.00026587,7]
[391360459,1760566242835,-151.0,0.00026587,7]
[391360460,1760566242845,-151.0,0.00026587,7]
[391360461,1760566242855,-151.0,0.00026587,2]
[391360462,1760566242864,-195.782472,0.00026587,7]
[391360463,1760566242873,-151.0,0.00026587,7]
[391360464,1760566242884,-151.0,0.00026587,7]
[391360465,1760566242893,-151.0,0.00026587,7]
[391360466,1760566242903,-151.0,0.00026587,7]
[391360467,1760566242913,-151.0,0.00026587,7]
[391360468,1760566242923,-151.0,0.00026587,7]
[391360469,1760566242933,-1148.411497,0.00026587,7]
[391360470,1760566242943,-1148.411497,0.00026587,7]
[391360471,1760566242954,-1148.411497,0.00026587,7]
[391360472,1760566242963,-1148.411497,0.00026587,7]
[391360473,1760566242974,-151.0,0.00026587,7]
[391360474,1760566242983,-151.0,0.00026587,7]
[391360475,1760566242993,-151.0,0.00026587,7]
[391360476,1760566243003,-151.0,0.00026587,7]
[391360477,1760566243012,-151.0,0.00026587,7]
[391360478,1760566243021,-151.0,0.00026587,7]
[391360479,1760566243031,-151.0,0.00026587,7]
[391360480,1760566243040,-151.0,0.00026587,7]
[391360481,1760566243050,-151.0,0.00026587,7]
[391360482,1760566243059,-151.0,0.00026587,7]
[391360483,1760566243069,-151.0,0.00026587,7]
[391360484,1760566243078,-151.0,0.00026587,7]
[391360485,1760566243088,-285.209988,0.0002659,7]
[391360486,1760566243099,-151.0,0.0002659,7]
[391360487,1760566243109,-418.25641,0.0002659,7]
[391360488,1760566243122,-151.0,0.0002659,7]
[391360489,1760566243132,-418.25641,0.0002659,7]
[391360490,1760566243142,-418.25641,0.0002659,7]
[391360491,1760566243151,-418.25641,0.0002659,7]
[391360492,1760566243161,-151.0,0.0002659,7]
[391360493,1760566243171,-151.0,0.0002659,7]
[391360494,1760566243180,-178.81442,0.0002659,7]
[391360495,1760566243189,-151.0,0.0002659,7]
[391360496,1760566243201,-151.0,0.0002659,7]
[391360497,1760566243211,-151.0,0.0002659,7]
[391360498,1760566243220,-207.647707,0.0002659,7]
[391360499,1760566243231,-25393.9979739,0.0002659,3]
[391360500,1760566243241,-51230.5976609,0.0002659,3]
[391360501,1760566243251,-56718.78,0.000266,7]
[391360502,1760566243260,-151.0,0.000266,7]
[391360503,1760566243270,-151.0,0.000266,7]
[391360504,1760566243279,-151.0,0.000266,7]
[391360505,1760566243288,-151.0,0.000266,7]
[391360506,1760566243297,-151.0,0.000266,7]
[391360507,1760566243307,-151.0,0.000266,7]
[391360508,1760566243316,-151.0,0.000266,7]
[391360509,1760566243676,-151.0,0.000266,7]
[391360510,1760566243694,-273.540126,0.000266,7]
[391360511,1760566243704,-151.0,0.000266,7]
[391360512,1760566243714,-151.0,0.000266,7]
[391360513,1760566243724,-151.0,0.000266,7]
[391360514,1760566243733,-151.0,0.000266,7]
[391360515,1760566243743,-151.0,0.000266,7]
[391360516,1760566243753,-151.0,0.000266,7]
[391360517,1760566243762,-151.0,0.000266,7]
[391360518,1760566243771,-153.894944,0.000266,7]
[391360519,1760566243780,-151.0,0.000266,7]
[391360520,1760566243789,-151.0,0.000266,7]
[391360521,1760566243799,-153.008447,0.000266,7]
[391360522,1760566243810,-153.008447,0.000266,7]
[391360523,1760566243819,-153.008447,0.000266,7]
[391360524,1760566243829,-153.008447,0.000266,7]
[391360525,1760566243840,-151.0,0.000266,7]
[391360526,1760566243850,-151.0,0.000266,7]
[391360527,1760566243860,-341.127924,0.000266,7]
[391360528,1760566243870,-341.127924,0.000266,7]
[391360529,1760566243880,-341.127924,0.000266,7]
[391360530,1760566243890,-341.127924,0.000266,7]
[391360531,1760566243899,-151.0,0.000266,7]
[391360532,1760566243909,-151.275989,0.000266,7]
[391360533,1760566243918,-151.0,0.000266,7]
[391360534,1760566243927,-151.0,0.000266,7]
[391360535,1760566243937,-256.356302,0.000266,7]
[391360536,1760566243946,-256.356302,0.000266,7]
[391360537,1760566243955,-256.356302,0.000266,7]
[391360538,1760566243964,-256.356302,0.000266,7]
[391360539,1760566243974,-151.0,0.000266,7]
[391360540,1760566243983,-154.001254,0.000266,7]
[391360541,1760566243992,-154.001254,0.000266,7]
[391360542,1760566244001,-154.001254,0.000266,7]
[391360543,1760566244011,-154.001254,0.000266,7]
[391360544,1760566244020,-151.0,0.000266,7]
[391360545,1760566244029,-159.401086,0.000266,7]
[391360546,1760566244039,-151.0,0.000266,7]
[391360547,1760566244049,-176.766044,0.000266,7]
[391360548,1760566244058,-176.766044,0.000266,7]
[391360549,1760566244068,-176.766044,0.000266,7]
[391360550,1760566244079,-176.766044,0.000266,7]
[391360551,1760566244088,-151.0,0.000266,7]
[391360552,1760566244099,-151.0,0.000266,7]
[391360553,1760566244108,-151.0,0.000266,7]
[391360554,1760566244121,-151.0,0.000266,7]
[391360555,1760566244130,-284.98374,0.000266,7]
[391360556,1760566244139,-151.0,0.000266,7]
[391360557,1760566244148,-151.0,0.000266,7]
[391360558,1760566244158,-151.0,0.000266,7]
[391360559,1760566244166,-151.0,0.000266,7]
[391360560,1760566244176,-151.0,0.000266,7]
[391360561,1760566244185,-152.930975,0.000266,7]
[391360562,1760566244196,-151.0,0.000266,7]
[391360563,1760566244206,-151.0,0.000266,7]
[391360564,1760566244215,-151.0,0.000266,7]
[391360565,1760566244225,-151.0,0.000266,7]
[391360566,1760566244234,-151.0,0.000266,7]
[391360567,1760566244244,-289.786975,0.000266,7]
[391360568,1760566244253,-289.786975,0.000266,7]
[391360569,1760566244262,-151.0,0.000266,7]
[391360570,1760566244271,-289.786975,0.000266,7]
[391360571,1760566244280,-289.786975,0.000266,7]
[391360572,1760566244289,-151.0,0.000266,7]
[391360573,1760566244298,-167.278784,0.000266,7]
[391360574,1760566244308,-151.0,0.000266,7]
[391360575,1760566244317,-151.0,0.000266,7]
[391360576,1760566244326,-151.0,0.000266,7]
[391360577,1760566244336,-166.66666667,0.00026612,2]
[391360578,1760566244345,-2790.43134,0.0002664,2]
[391360579,1760566244354,-150.0,0.00026642,2]
[391360580,1760566244363,-3139.01,0.00026652,30]
[391360581,1760566244372,-599.01,0.00026676,2]
[391360582,1760566244382,-200.0,0.00026685,2]
[391360583,1760566244391,-200.0,0.00026685,2]
[391360584,1760566244400,-1000.0,0.00026693,2]
[391360585,1760566244410,-300.0,0.00026699,10]
[391360586,1760566244420,-1400.0,0.000267,9]
[391360587,1760566244429,-152.0,0.00026731,11]
[391360588,1760566244438,-17076.865887,0.00026731,3]
[391360589,1760566244448,-151.0,0.00026741,7]
[391360590,1760566244457,-151.0,0.00026741,7]
[391360591,1760566244466,-151.0,0.00026741,7]
[391360592,1760566244475,-151.0,0.00026741,7]
[391360593,1760566244485,-151.0,0.00026741,7]
[391360594,1760566244494,-151.0,0.00026741,7]
[391360595,1760566244503,-255.853698,0.00026741,7]
[391360596,1760566244512,-359.531014,0.00026741,7]
[391360597,1760566244521,-359.531014,0.00026741,7]
[391360598,1760566244531,-151.0,0.00026741,7]
[391360599,1760566244540,-909.700805,0.00026741,7]
[391360600,1760566244549,-359.531014,0.00026741,7]
[391360601,1760566244558,-909.700805,0.00026741,7]
[391360602,1760566244567,-359.531014,0.00026741,7]
[391360603,1760566244576,-909.700805,0.00026741,7]
[391360604,1760566244585,-909.700805,0.00026741,7]
[391360605,1760566244595,-151.0,0.00026741,7]
[391360606,1760566244603,-151.0,0.00026741,7]
[391360607,1760566244615,-151.0,0.00026741,7]
[391360608,1760566244625,-151.0,0.00026741,7]
[391360609,1760566244635,-338.869371,0.00026741,7]
[391360610,1760566244644,-338.869371,0.00026741,7]
[391360611,1760566244654,-151.0,0.00026741,7]
[391360612,1760566244663,-338.869371,0.00026741,7]
[391360613,1760566244674,-151.0,0.00026741,7]
[391360614,1760566244683,-338.869371,0.00026741,7]
[391360615,1760566244693,-151.0,0.00026741,7]
[391360616,1760566244703,-25393.9979739,0.00026742,3]
[391360617,1760566244713,-218.68817822,0.00026752,2]
[391360618,1760566244722,-173.44219377,0.00026752,19]
[391360619,1760566244733,-1900.0,0.000268,9]
[391360620,1760566244744,-1000.0,0.00026849,2]
[391360621,1760566244754,-17076.865887,0.00026851,3]
[391360622,1760566244764,-552.0585326,0.00026852,2]
[391360623,1760566244775,-2903.26271186,0.0002686,3]
[391360624,1760566244792,-2250.0,0.0002686,3]
[391360625,1760566244805,-20240.73526204,0.0002686,3]
[391360626,1760566244815,-209.52158085,0.00026868,2]
[391360627,1760566244825,-1500.0,0.00026868,2]
[391360628,1760566244835,-1500.0,0.00026868,2]
[391360629,1760566244845,-1500.0,0.00026868,2]
[391360630,1760566244855,-1500.0,0.00026868,2]
[391360631,1760566244866,-17076.865887,0.0002687,3]
[391360632,1760566244876,-150.0,0.00026873,2]
[391360633,1760566244886,-50787.9959478,0.0002688,3]
[391360634,1760566244897,-17076.865887,0.0002688,3]
[391360635,1760566244907,-1000.0,0.00026889,2]
[391360636,1760566244916,-151.0,0.0002689,7]
[391360637,1760566244926,-151.0,0.0002689,7]
[391360638,1760566244936,-421.278456,0.0002689,7]
[391360639,1760566244946,-151.0,0.0002689,7]
[391360640,1760566244955,-421.278456,0.0002689,7]
[391360641,1760566244965,-421.278456,0.0002689,7]
[391360642,1760566244975,-421.278456,0.0002689,7]
[391360643,1760566244984,-151.0,0.0002689,7]
[391360644,1760566244994,-151.0,0.0002689,7]
[391360645,1760566245003,-151.0,0.0002689,7]
[391360646,1760566245013,-151.0,0.0002689,7]
[391360647,1760566245023,-151.0,0.0002689,7]
[391360648,1760566245033,-151.0,0.0002689,7]
[391360649,1760566245043,-151.0,0.0002689,7]
[391360650,1760566245053,-151.88386,0.0002689,7]
[391360651,1760566245062,-155.574498,0.0002689,7]
[391360652,1760566245072,-155.574498,0.0002689,7]
[391360653,1760566245081,-155.574498,0.0002689,7]
[391360654,1760566245091,-155.574498,0.0002689,7]
[391360655,1760566245100,-151.0,0.0002689,7]
[391360656,1760566245110,-151.0,0.0002689,7]
[391360657,1760566245124,-196.95317,0.0002689,7]
[391360658,1760566245134,-151.0,0.0002689,7]
[391360659,1760566245145,-151.0,0.0002689,7]
[391360660,1760566245157,-151.0,0.0002689,7]
[391360661,1760566245167,-247.575844,0.0002689,7]
[391360662,1760566245178,-151.0,0.0002689,7]
[391360663,1760566245191,-151.0,0.0002689,7]
[391360664,1760566245202,-151.0,0.0002689,7]
[391360665,1760566245213,-151.0,0.0002689,7]
[391360666,1760566245223,-151.0,0.0002689,7]
[391360667,1760566245235,-261.813996,0.0002689,7]
[391360668,1760566245245,-151.0,0.0002689,7]
[391360669,1760566245256,-261.813996,0.0002689,7]
[391360670,1760566245266,-151.0,0.0002689,7]
[391360671,1760566245278,-261.813996,0.0002689,7]
[391360672,1760566245289,-261.813996,0.0002689,7]
[391360673,1760566245299,-151.0,0.0002689,7]
[391360674,1760566245309,-151.0,0.0002689,7]
[391360675,1760566245319,-151.0,0.0002689,7]
[391360676,1760566245328,-151.0,0.0002689,7]
[391360677,1760566245338,-151.0,0.0002689,7]
[391360678,1760566245348,-151.0,0.0002689,7]
[391360679,1760566245358,-151.0,0.0002689,2]
[391360680,1760566245367,-151.0,0.0002689,7]
[391360681,1760566245376,-151.0,0.0002689,7]
[391360682,1760566245386,-184.598987,0.0002689,7]
[391360683,1760566245395,-151.0,0.0002689,7]
[391360684,1760566245405,-250.501357,0.0002689,7]
[391360685,1760566245415,-1148.411497,0.0002689,7]
[391360686,1760566245425,-1148.411497,0.0002689,7]
[391360687,1760566245434,-1148.411497,0.0002689,7]
[391360688,1760566245444,-151.0,0.0002689,7]
[391360689,1760566245453,-151.0,0.0002689,7]
[391360690,1760566245462,-1148.411497,0.0002689,7]
[391360691,1760566245472,-151.0,0.0002689,7]
[391360692,1760566245482,-151.0,0.0002689,7]
[391360693,1760566245491,-151.0,0.0002689,7]
[391360694,1760566245501,-151.0,0.0002689,7]
[391360695,1760566245511,-151.0,0.0002689,7]
[391360696,1760566245521,-151.0,0.0002689,7]
[391360697,1760566245530,-152.377371,0.0002689,7]
[391360698,1760566245540,-151.0,0.0002689,7]
[391360699,1760566245549,-151.0,0.000269,7]
[391360700,1760566245558,-151.0,0.000269,7]
[391360701,1760566245567,-151.0,0.000269,7]
[391360702,1760566245576,-151.0,0.000269,7]
[391360703,1760566245585,-151.0,0.000269,7]
[391360704,1760566245595,-152.468609,0.000269,7]
[391360705,1760566245604,-151.0,0.000269,7]
[391360706,1760566245613,-151.0,0.000269,7]
[391360707,1760566245623,-151.0,0.000269,7]
[391360708,1760566245633,-151.0,0.000269,7]
[391360709,1760566245642,-151.0,0.000269,7]
[391360710,1760566245651,-188.704882,0.000269,7]
[391360711,1760566245660,-163.298978,0.000269,7]
[391360712,1760566245670,-256.127876,0.000269,7]
[391360713,1760566245679,-153.008447,0.000269,7]
[391360714,1760566245688,-153.008447,0.000269,7]
[391360715,1760566245697,-153.008447,0.000269,7]
[391360716,1760566245707,-153.008447,0.000269,7]
[391360717,1760566245716,-156.368487,0.000269,7]
[391360718,1760566245726,-151.0,0.000269,7]
[391360719,1760566245735,-341.127924,0.000269,7]
[391360720,1760566245745,-341.127924,0.000269,7]
[391360721,1760566245755,-341.127924,0.000269,7]
[391360722,1760566245764,-341.127924,0.000269,7]
[391360723,1760566245774,-151.0,0.000269,7]
[391360724,1760566245784,-151.0,0.000269,7]
[391360725,1760566245794,-151.0,0.000269,7]
[391360726,1760566245803,-256.356302,0.000269,7]
[391360727,1760566245813,-256.356302,0.000269,7]
[391360728,1760566245822,-256.356302,0.000269,7]
[391360729,1760566245832,-256.356302,0.000269,7]
[391360730,1760566245842,-151.0,0.000269,7]
[391360731,1760566245852,-154.001254,0.000269,7]
[391360732,1760566245862,-154.001254,0.000269,7]
[391360733,1760566245872,-154.001254,0.000269,7]
[391360734,1760566245882,-154.001254,0.000269,7]
[391360735,1760566245893,-151.0,0.000269,7]
[391360736,1760566245903,-151.0,0.000269,7]
[391360737,1760566245912,-176.766044,0.000269,7]
[391360738,1760566245922,-176.766044,0.000269,7]
[391360739,1760566245932,-176.766044,0.000269,7]
[391360740,1760566245942,-176.766044,0.000269,7]
[391360741,1760566245952,-151.0,0.000269,7]
[391360742,1760566245962,-151.0,0.000269,7]
[391360744,1760566245972,-151.0,0.000269,7]
[391360745,1760566245981,-151.0,0.000269,7]
[391360746,1760566245991,-151.0,0.000269,7]
[391360747,1760566246000,-151.0,0.000269,7]
[391360748,1760566246010,-151.0,0.000269,7]
[391360749,1760566246019,-151.0,0.000269,7]
[391360750,1760566246029,-151.0,0.000269,7]
[391360752,1760566246038,-151.0,0.000269,7]
[391360753,1760566246047,-151.0,0.000269,7]
[391360755,1760566246056,-289.786975,0.000269,7]
[391360756,1760566246065,-289.786975,0.000269,7]
[391360757,1760566246075,-151.0,0.000269,7]
[391360758,1760566246084,-289.786975,0.000269,7]
[391360759,1760566246093,-289.786975,0.000269,7]
[391360760,1760566246103,-151.0,0.000269,7]
[391360761,1760566246113,-151.0,0.000269,7]
[391360762,1760566246127,-418.25641,0.000269,7]
[391360763,1760566246137,-151.0,0.000269,7]
[391360764,1760566246146,-418.25641,0.000269,7]
[391360765,1760566246155,-418.25641,0.000269,7]
[391360766,1760566246166,-418.25641,0.000269,7]
[391360767,1760566246176,-151.0,0.000269,7]
[391360768,1760566246186,-151.0,0.000269,7]
[391360769,1760566246197,-151.0,0.000269,7]
[391360770,1760566246207,-151.0,0.000269,7]
[391360771,1760566246217,-2300.0,0.000269,9]
[391360772,1760566246226,-151.0,0.000269,7]
[391360773,1760566246235,-151.0,0.000269,7]
[391360774,1760566246246,-151.0,0.000269,7]
[391360775,1760566246255,-151.0,0.000269,7]
[391360776,1760566246264,-212.888187,0.000269,7]
[391360777,1760566246273,-1000.0,0.0002693,2]
[391360778,1760566246282,-200.0,0.00026952,2]
[391360779,1760566246291,-200.0,0.00026952,2]
[391360780,1760566246301,-1000.0,0.0002697,2]
[391360781,1760566246310,-2113.37,0.00027,5]
[391360782,1760566246319,-30000.0,0.00027,4]
[391360783,1760566246328,-30000.0,0.00027,4]
[391360784,1760566246338,-31866.7887066,0.00027,4]
[391360785,1760566246347,-1937.37984313,0.00027,14]
[391360786,1760566246356,-250.0,0.00027,2]
[391360787,1760566246365,-1016.89541985,0.00027,2]
[391360788,1760566246374,-530.0,0.00027,2]
[391360789,1760566246384,-43050.86329969,0.00027,15]
[391360790,1760566246393,-32816.3468678,0.00027,4]
[391360791,1760566246402,-10519.0,0.00027,7]
[391360792,1760566246412,-4192.33614569,0.00027,2]
[391360793,1760566246422,-1000.0,0.00027,30]
[391360794,1760566246431,-1186.92640185,0.00027,2]
[391360795,1760566246441,-456.70020132,0.00027,30]
[391360796,1760566246450,-253.87,0.00027,30]
[391360797,1760566246459,-500.0,0.00027,2]
[391360798,1760566246468,-2000.0,0.00027,2]
[391360799,1760566246477,-1007.38,0.00027,30]
[391360800,1760566246486,-1001.0,0.00027,2]
[391360801,1760566246496,-151.0,0.00027,7]
[391360802,1760566246505,-151.0,0.00027,7]
[391360803,1760566246515,-151.0,0.00027,7]
[391360804,1760566246524,-151.0,0.00027,7]
[391360805,1760566246533,-359.531014,0.00027,7]
[391360806,1760566246542,-359.531014,0.00027,7]
[391360807,1760566246553,-151.0,0.00027,7]
[391360808,1760566246563,-909.700805,0.00027,7]
[391360809,1760566246572,-359.531014,0.00027,7]
[391360810,1760566246581,-909.700805,0.00027,7]
[391360811,1760566246590,-359.531014,0.00027,7]
[391360812,1760566246599,-909.700805,0.00027,7]
[391360813,1760566246609,-909.700805,0.00027,7]
[391360814,1760566246619,-151.0,0.00027,7]
[391360815,1760566246628,-151.0,0.00027,7]
[391360816,1760566246638,-151.0,0.00027,7]
[391360817,1760566246649,-338.869371,0.00027,7]
[391360818,1760566246658,-151.0,0.00027,7]
[391360819,1760566246668,-338.869371,0.00027,7]
[391360820,1760566246678,-338.869371,0.00027,7]
[391360821,1760566246687,-151.0,0.00027,7]
[391360822,1760566246697,-338.869371,0.00027,7]
[391360823,1760566246707,-151.0,0.00027,7]
[391360824,1760566246717,-1000.0,0.0002701,2]
[391360825,1760566246728,-2351.922581,0.0002701,2]
[391360826,1760566246737,-1000.0,0.0002705,2]
[391360827,1760566246746,-219.0,0.00027064,7]
[391360828,1760566246756,-1000.0,0.00027068,2]
[391360829,1760566246765,-1500.0,0.00027068,2]
[391360830,1760566246774,-1500.0,0.00027068,2]
[391360831,1760566246783,-1000.0,0.0002709,2]
[391360832,1760566246793,-5615.61761575,0.000271,7]
[391360833,1760566246961,-2545.0,0.0002032,2]
[391360834,1760566246970,-2545.0,0.0002332,2]
[391360835,1760566246980,-151.0,0.00025973,2]
[391360836,1760566246989,-1000.0,0.00026241,2]
[391360837,1760566246999,-2545.0,0.0002632,2]
[391360838,1760566247009,-951.405091,0.0002657,7]
[391360839,1760566247018,-212.888187,0.0002657,7]
[391360840,1760566247027,-951.405091,0.0002657,7]
[391360841,1760566247036,-212.888187,0.0002657,7]
[391360842,1760566247045,-212.888187,0.000269,7]
[391360843,1760566247055,-951.405091,0.000269,7]
[391360844,1760566247064,-212.888187,0.000269,7]
[391360845,1760566247073,-951.405091,0.000269,7]
[391360846,1760566247082,-17911.02238425,0.000271,7]
[391360847,1760566247091,-242.9930447,0.000271,2]
[391360848,1760566247101,-3622.3,0.00027123,2]
[391360849,1760566247110,-600.0,0.00027123,2]
[391360850,1760566247124,-1000.0,0.0002713,2]
[391360851,1760566247133,-151.0,0.00027157,7]
[391360852,1760566247142,-151.0,0.00027157,7]
[391360853,1760566247151,-151.0,0.00027157,7]
[391360854,1760566247162,-151.0,0.00027157,7]
[391360855,1760566247171,-151.976857,0.00027157,7]
[391360856,1760566247180,-151.0,0.00027157,7]
[391360857,1760566247189,-211.923112,0.00027157,7]
[391360858,1760566247200,-261.813996,0.00027157,7]
[391360859,1760566247209,-151.0,0.00027157,7]
[391360860,1760566247219,-261.813996,0.00027157,7]
[391360861,1760566247228,-151.0,0.00027157,7]
[391360862,1760566247237,-261.813996,0.00027157,7]
[391360863,1760566247247,-261.813996,0.00027157,7]
[391360864,1760566247256,-151.0,0.00027157,7]
[391360865,1760566247265,-151.0,0.00027157,7]
[391360866,1760566247275,-151.0,0.00027157,7]
[391360867,1760566247284,-151.0,0.00027157,7]
[391360868,1760566247294,-151.0,0.00027157,7]
[391360869,1760566247303,-177.638028,0.00027157,2]
[391360870,1760566247313,-151.0,0.00027157,7]
[391360871,1760566247321,-151.0,0.00027157,7]
[391360872,1760566247331,-151.0,0.00027157,7]
[391360873,1760566247340,-1148.411497,0.00027157,7]
[391360874,1760566247350,-1148.411497,0.00027157,7]
[391360875,1760566247359,-1148.411497,0.00027157,7]
[391360876,1760566247368,-151.0,0.00027157,7]
[391360877,1760566247377,-151.0,0.00027157,7]
[391360878,1760566247387,-1148.411497,0.00027157,7]
[391360879,1760566247396,-151.0,0.00027157,7]
[391360880,1760566247405,-151.0,0.00027157,7]
[391360881,1760566247414,-151.0,0.00027157,7]
[391360882,1760566247423,-151.0,0.00027157,7]
[391360883,1760566247432,-151.0,0.00027157,7]
[391360884,1760566247443,-151.0,0.00027157,7]
[391360885,1760566247453,-151.0,0.00027157,7]
[391360886,1760566247462,-166.66666667,0.00027167,2]